[Event "CCT Chessable Masters Play-In 2025"]
[Site "Online"]
[Date "2025.02.17"]
[Round "1.30"]
[White "Chirila, Ioan-Cristian"]
[Black "Bok, Benjamin"]
[Result "0-1"]
[ECO "E15"]
[WhiteElo "2506"]
[BlackElo "2583"]
[PlyCount "106"]
[EventDate "2025.02.13"]
[EventType "swiss"]
[EventCountry "NET"]
[TimeControl "600"]
[BlackClock "0:00:26"]

1. d4 {[%emt 0:00:02]} Nf6 {[%emt 0:00:02]} 2. c4 {[%emt 0:00:02]} e6 {[%emt 0:00:01]} 3. Nf3 {[%emt 0:00:02]} b6 {[%emt 0:00:01]} 4. g3 {[%emt 0:00:01]} Ba6 {[%emt 0:00:01]} 5. Qb3 {[%emt 0:00:01]} Nc6 {[%emt 0:00:02]} 6. Nbd2 {[%emt 0:00:01]} Na5 {[%emt 0:00:03]} 7. Qc3 {[%emt 0:00:01]} c5 {[%emt 0:00:03]} 8. dxc5 {[%emt 0:00:01]} bxc5 {[%emt 0:00:01]} 9. e4 {[%emt 0:00:00]} Bb7 {[%emt 0:00:04]} 10. e5 {[%emt 0:00:01]} Ne4 {[%emt 0:00:01]} 11. Nxe4 {[%emt 0:00:01]} Bxe4 {[%emt 0:00:01]} 12. Bg2 {[%emt 0:00:05]} Rb8 {[%emt 0:00:25]} 13. O-O {[%emt 0:00:18]} Be7 {[%emt 0:00:02]} 14. Re1 {[%emt 0:00:14]} f5 {[%emt 0:00:22]} 15. Be3 {[%emt 0:02:53]} O-O {[%emt 0:00:07]} 16. Rad1 {[%emt 0:00:04]} Qc7 {[%emt 0:00:08]} 17. Bg5 {[%emt 0:00:40]} Nc6 {[%emt 0:01:27]} 18. Bxe7 {[%emt 0:00:12]} Nxe7 {[%emt 0:00:00]} 19. Rd2 {[%emt 0:00:21]} Nc6 {[%emt 0:00:18]} 20. b3 {[%emt 0:00:24]} Bxf3 {[%emt 0:00:31]} 21. Bxf3 {[%emt 0:00:00]} Nd4 {[%emt 0:00:02]} 22. Rxd4 {[%emt 0:00:02]} cxd4 {[%emt 0:00:02]} 23. Qxd4 {[%emt 0:00:00]} a5 {[%emt 0:00:28]} 24. Rd1 {[%emt 0:00:21]} Rfd8 {[%emt 0:00:04]} 25. Qc3 {[%emt 0:00:39]} Qc5 {[%emt 0:00:11]} 26. Rd6 {[%emt 0:00:04]} Rb6 {[%emt 0:00:33]} 27. Rd3 {[%emt 0:01:13]} h6 {[%emt 0:00:06]} 28. h4 {[%emt 0:00:02]} a4 {[%emt 0:00:15]} 29. Kg2 {[%emt 0:00:02]} axb3 {[%emt 0:00:01]} 30. axb3 {[%emt 0:00:00]} Rdb8 {[%emt 0:00:19]} 31. Bd1 {[%emt 0:00:11]} R8b7 {[%emt 0:00:05]} 32. Qd2 {[%emt 0:00:05]} Kh7 {[%emt 0:00:30]} 33. Bf3 {[%emt 0:00:08]} Ra7 {[%emt 0:00:19]} 34. Rxd7 {[%emt 0:00:01]} Rxb3 {[%emt 0:00:44]} 35. Rxa7 {[%emt 0:00:29]} Qxa7 {[%emt 0:00:00]} 36. Qc2 {[%emt 0:00:01]} Qa3 {[%emt 0:00:14]} 37. Bg4 {[%emt 0:00:31]} Kh8 {[%emt 0:01:00]} 38. Bh5 {[%emt 0:00:05]} Rb2 {[%emt 0:00:05]} 39. Qd1 {[%emt 0:00:05]} Qc5 {[%emt 0:00:07]} 40. Be2 {[%emt 0:00:09]} Qxe5 {[%emt 0:00:06]} 41. Kf1 {[%emt 0:00:07]} Kh7 {[%emt 0:00:05]} 42. h5 {[%emt 0:00:01]} Qe4 {[%emt 0:00:05]} 43. Bf3 {[%emt 0:00:01]} Qxc4+ {[%emt 0:00:03]} 44. Kg2 {[%emt 0:00:01]} Qc5 {[%emt 0:00:02]} 45. Qe1 {[%emt 0:00:01]} Qd4 {[%emt 0:00:02]} 46. Qf1 {[%emt 0:00:04]} e5 {[%emt 0:00:07]} 47. Be2 {[%emt 0:00:00]} e4 {[%emt 0:00:02]} 48. Kg1 {[%emt 0:00:05]} e3 {[%emt 0:00:06]} 49. f3 {[%emt 0:00:02]} Qd2 {[%emt 0:00:02]} 50. Qh3 {[%emt 0:00:01]} Qe1+ {[%emt 0:00:02]} 51. Bf1 {[%emt 0:00:03]} Qf2+ {[%emt 0:00:02]} 52. Kh1 {[%emt 0:00:00]} Qxf3+ {[%emt 0:00:00]} 53. Bg2 Rxg2 {[%emt 0:00:05]} 0-1

[Event "CCT Chessable Masters Play-In 2025"]
[Site "Online"]
[Date "2025.02.17"]
[Round "1.31"]
[White "Mamedov, Rauf"]
[Black "Vetokhin, Savva"]
[Result "1-0"]
[ECO "B25"]
[WhiteElo "2656"]
[BlackElo "2533"]
[PlyCount "71"]
[EventDate "2025.02.13"]
[EventType "swiss"]
[EventCountry "NET"]
[TimeControl "600"]
[WhiteClock "0:06:37"]
[BlackClock "0:03:44"]

1. e4 {[%emt 0:00:02]} c5 {[%emt 0:00:02]} 2. Nf3 {[%emt 0:00:02]} d6 {[%emt 0:00:02]} 3. Nc3 {[%emt 0:00:03]} Nf6 {[%emt 0:00:01]} 4. g3 {[%emt 0:00:02]} Nc6 {[%emt 0:00:01]} 5. Bg2 {[%emt 0:00:01]} g6 {[%emt 0:00:01]} 6. O-O {[%emt 0:00:01]} Bg4 {[%emt 0:00:03]} 7. h3 {[%emt 0:00:01]} Bxf3 {[%emt 0:00:03]} 8. Bxf3 {[%emt 0:00:00]} Bg7 {[%emt 0:00:00]} 9. Bg2 {[%emt 0:00:01]} O-O {[%emt 0:00:03]} 10. d3 {[%emt 0:00:01]} Nd7 {[%emt 0:00:01]} 11. a4 {[%emt 0:00:02]} Nd4 {[%emt 0:00:03]} 12. Nd5 {[%emt 0:00:19]} e6 {[%emt 0:00:07]} 13. Ne3 {[%emt 0:00:01]} a6 {[%emt 0:00:04]} 14. c3 {[%emt 0:00:01]} Nc6 {[%emt 0:00:00]} 15. f4 {[%emt 0:00:10]} Rb8 {[%emt 0:00:02]} 16. h4 {[%emt 0:00:11]} b5 {[%emt 0:00:05]} 17. axb5 {[%emt 0:00:01]} axb5 {[%emt 0:00:00]} 18. h5 {[%emt 0:00:04]} Qc7 {[%emt 0:00:12]} 19. f5 {[%emt 0:00:23]} Nde5 {[%emt 0:00:40]} 20. f6 {[%emt 0:00:07]} Bh8 {[%emt 0:00:11]} 21. d4 {[%emt 0:00:04]} cxd4 {[%emt 0:00:00]} 22. cxd4 {[%emt 0:00:00]} Nd7 {[%emt 0:00:16]} 23. Ng4 {[%emt 0:00:02]} Rfc8 {[%emt 0:00:00]} 24. hxg6 {[%emt 0:00:16]} hxg6 {[%emt 0:00:08]} 25. e5 {[%emt 0:00:35]} dxe5 {[%emt 0:00:18]} 26. d5 {[%emt 0:00:01]} Nd4 {[%emt 0:00:11]} 27. dxe6 {[%emt 0:00:03]} Nxe6 {[%emt 0:00:04]} 28. Be3 {[%emt 0:00:01]} Ndc5 {[%emt 0:00:15]} 29. Rc1 {[%emt 0:00:12]} Qd7 {[%emt 0:00:17]} 30. Nh6+ {[%emt 0:00:08]} Kh7 {[%emt 0:00:44]} 31. Qg4 {[%emt 0:00:02]} Nf4 {[%emt 0:01:40]} 32. gxf4 {[%emt 0:00:10]} Qd3 {[%emt 0:00:32]} 33. Qh3 {[%emt 0:00:08]} exf4 {[%emt 0:00:10]} 34. Nf5+ {[%emt 0:00:06]} Kg8 {[%emt 0:00:00]} 35. Ne7+ {[%emt 0:00:01]} Kf8 {[%emt 0:00:00]} 36. Qxh8# {[%emt 0:00:01]} 1-0

[Event "CCT Chessable Masters Play-In 2025"]
[Site "Online"]
[Date "2025.02.17"]
[Round "1.32"]
[White "Sethuraman, S.P."]
[Black "Salem, A.R. Saleh"]
[Result "0-1"]
[ECO "B12"]
[WhiteElo "2557"]
[BlackElo "2631"]
[PlyCount "84"]
[EventDate "2025.02.13"]
[EventType "swiss"]
[EventCountry "NET"]
[TimeControl "600"]
[WhiteClock "0:00:53"]
[BlackClock "0:01:33"]

1. e4 {[%emt 0:00:01]} c6 {[%emt 0:00:02]} 2. d4 {[%emt 0:00:02]} d5 {[%emt 0:00:00]} 3. e5 {[%emt 0:00:00]} Bf5 {[%emt 0:00:01]} 4. Nf3 {[%emt 0:00:01]} e6 {[%emt 0:00:00]} 5. Be2 {[%emt 0:00:01]} c5 {[%emt 0:00:01]} 6. Be3 {[%emt 0:00:02]} cxd4 {[%emt 0:00:01]} 7. Nxd4 {[%emt 0:00:01]} Ne7 {[%emt 0:00:00]} 8. O-O {[%emt 0:00:28]} Nbc6 {[%emt 0:00:02]} 9. Bb5 {[%emt 0:00:07]} a6 {[%emt 0:00:01]} 10. Bxc6+ {[%emt 0:00:09]} bxc6 {[%emt 0:00:01]} 11. c4 {[%emt 0:00:35]} Qd7 {[%emt 0:00:01]} 12. Na3 {[%emt 0:00:18]} f6 {[%emt 0:00:05]} 13. exf6 {[%emt 0:00:19]} gxf6 {[%emt 0:00:00]} 14. Re1 {[%emt 0:00:05]} Bg6 {[%emt 0:00:12]} 15. cxd5 {[%emt 0:00:25]} cxd5 {[%emt 0:00:00]} 16. Nb3 {[%emt 0:00:05]} e5 {[%emt 0:01:12]} 17. f4 {[%emt 0:00:19]} Bg7 {[%emt 0:00:35]} 18. Nc5 {[%emt 0:00:07]} Qc6 {[%emt 0:00:10]} 19. Rc1 {[%emt 0:00:19]} O-O {[%emt 0:00:01]} 20. Bf2 {[%emt 0:00:07]} Rfe8 {[%emt 0:00:29]} 21. Nd3 {[%emt 0:00:14]} Qe6 {[%emt 0:01:00]} 22. fxe5 {[%emt 0:00:04]} fxe5 {[%emt 0:00:01]} 23. Nf4 {[%emt 0:00:06]} Qf7 {[%emt 0:00:19]} 24. Nxg6 {[%emt 0:00:02]} Nxg6 {[%emt 0:00:01]} 25. Nc2 {[%emt 0:00:01]} Rad8 {[%emt 0:00:07]} 26. Nb4 {[%emt 0:00:03]} e4 {[%emt 0:00:27]} 27. Bd4 {[%emt 0:00:12]} Nf4 {[%emt 0:00:10]} 28. Nc6 {[%emt 0:01:02]} Rd6 {[%emt 0:00:30]} 29. Rf1 {[%emt 0:00:02]} Rxc6 {[%emt 0:00:10]} 30. Rxc6 {[%emt 0:00:11]} Bxd4+ {[%emt 0:00:02]} 31. Kh1 {[%emt 0:00:00]} Be5 {[%emt 0:00:53]} 32. g3 {[%emt 0:00:03]} Qd7 {[%emt 0:00:00]} 33. gxf4 {[%emt 0:00:07]} Qxc6 {[%emt 0:00:01]} 34. fxe5 {[%emt 0:00:02]} Rxe5 {[%emt 0:00:17]} 35. Qg4+ {[%emt 0:00:05]} Qg6 {[%emt 0:00:02]} 36. Qd7 {[%emt 0:00:44]} e3 {[%emt 0:00:37]} 37. Rg1 {[%emt 0:00:27]} e2 {[%emt 0:00:30]} 38. Rxg6+ {[%emt 0:00:25]} hxg6 {[%emt 0:00:01]} 39. Qd8+ {[%emt 0:00:12]} Kf7 {[%emt 0:00:01]} 40. Qc7+ {[%emt 0:00:43]} Re7 {[%emt 0:00:14]} 41. Qf4+ {[%emt 0:00:05]} Kg8 {[%emt 0:00:02]} 42. Qb8+ {[%emt 0:00:46]} Kg7 {[%emt 0:00:08]} 0-1

[Event "CCT Chessable Masters Play-In 2025"]
[Site "Online"]
[Date "2025.02.17"]
[Round "1.33"]
[White "Sevian, Samuel"]
[Black "Tari, Aryan"]
[Result "1/2-1/2"]
[ECO "C60"]
[WhiteElo "2692"]
[BlackElo "2621"]
[PlyCount "219"]
[EventDate "2025.02.13"]
[EventType "swiss"]
[EventCountry "NET"]
[TimeControl "600"]
[WhiteClock "0:00:16"]
[BlackClock "0:00:44"]

1. e4 {[%emt 0:00:32]} e5 {[%emt 0:00:07]} 2. Nf3 {[%emt 0:00:01]} Nc6 {[%emt 0:00:01]} 3. Bb5 {[%emt 0:00:02]} Nge7 {[%emt 0:00:08]} 4. O-O {[%emt 0:00:04]} Ng6 {[%emt 0:00:01]} 5. Re1 {[%emt 0:00:04]} Bc5 {[%emt 0:00:04]} 6. c3 {[%emt 0:00:04]} Nh4 {[%emt 0:00:03]} 7. d3 {[%emt 0:00:39]} O-O {[%emt 0:00:03]} 8. Nbd2 {[%emt 0:00:20]} d6 {[%emt 0:00:04]} 9. Bxc6 {[%emt 0:00:43]} bxc6 {[%emt 0:00:02]} 10. d4 {[%emt 0:00:04]} exd4 {[%emt 0:00:36]} 11. cxd4 {[%emt 0:00:01]} Bb6 {[%emt 0:00:00]} 12. Nxh4 {[%emt 0:00:32]} Qxh4 {[%emt 0:00:00]} 13. Nf3 {[%emt 0:00:01]} Qh5 {[%emt 0:00:05]} 14. h3 {[%emt 0:00:08]} Re8 {[%emt 0:00:08]} 15. Bf4 {[%emt 0:00:32]} Qg6 {[%emt 0:00:29]} 16. Qd3 {[%emt 0:01:59]} Bxh3 {[%emt 0:00:27]} 17. Nh4 {[%emt 0:00:02]} Qf6 {[%emt 0:00:01]} 18. Qg3 {[%emt 0:00:02]} Bd7 {[%emt 0:00:52]} 19. e5 {[%emt 0:00:01]} Qe6 {[%emt 0:00:01]} 20. Nf3 {[%emt 0:01:03]} d5 {[%emt 0:00:30]} 21. Be3 {[%emt 0:00:01]} Qg4 {[%emt 0:00:13]} 22. Qxg4 {[%emt 0:00:02]} Bxg4 {[%emt 0:00:01]} 23. Nd2 {[%emt 0:00:07]} f6 {[%emt 0:00:09]} 24. f4 {[%emt 0:00:25]} fxe5 {[%emt 0:00:07]} 25. fxe5 {[%emt 0:00:00]} c5 {[%emt 0:01:09]} 26. dxc5 {[%emt 0:00:10]} Ba5 {[%emt 0:00:00]} 27. a3 {[%emt 0:00:10]} d4 {[%emt 0:00:32]} 28. b4 {[%emt 0:00:01]} dxe3 {[%emt 0:00:11]} 29. Rxe3 {[%emt 0:00:05]} Rad8 {[%emt 0:00:10]} 30. Nb3 {[%emt 0:00:01]} Bb6 {[%emt 0:00:02]} 31. Rc1 {[%emt 0:00:14]} Re7 {[%emt 0:00:14]} 32. cxb6 {[%emt 0:00:07]} cxb6 {[%emt 0:00:00]} 33. Rc4 {[%emt 0:00:01]} h5 {[%emt 0:00:01]} 34. Rd4 {[%emt 0:00:04]} Rde8 {[%emt 0:00:04]} 35. Rd5 {[%emt 0:00:15]} Be6 {[%emt 0:00:05]} 36. Rd6 {[%emt 0:00:01]} Bxb3 {[%emt 0:00:07]} 37. Rxb3 {[%emt 0:00:00]} Rxe5 {[%emt 0:00:00]} 38. Rd7 {[%emt 0:00:02]} R8e7 {[%emt 0:00:03]} 39. Rbd3 {[%emt 0:00:01]} Kf7 {[%emt 0:00:07]} 40. Kh2 {[%emt 0:00:04]} g5 {[%emt 0:00:02]} 41. Rf3+ {[%emt 0:00:03]} Ke6 {[%emt 0:00:01]} 42. Rd8 {[%emt 0:00:03]} g4 {[%emt 0:00:15]} 43. Rfd3 {[%emt 0:00:00]} Kf6 {[%emt 0:00:10]} 44. Kg3 {[%emt 0:00:01]} Re3+ {[%emt 0:00:03]} 45. Kh4 {[%emt 0:00:02]} Rxd3 {[%emt 0:00:05]} 46. Rxd3 {[%emt 0:00:00]} Re2 {[%emt 0:00:01]} 47. Kxh5 {[%emt 0:00:05]} Rxg2 {[%emt 0:00:00]} 48. Rd7 {[%emt 0:00:02]} a5 {[%emt 0:00:23]} 49. bxa5 {[%emt 0:00:01]} bxa5 {[%emt 0:00:00]} 50. Rd5 {[%emt 0:00:01]} a4 {[%emt 0:00:18]} 51. Ra5 {[%emt 0:00:01]} Rg3 {[%emt 0:00:19]} 52. Kh4 {[%emt 0:00:12]} Rxa3 {[%emt 0:00:01]} 53. Kxg4 {[%emt 0:00:00]} Ke6 {[%emt 0:00:01]} 54. Kf4 {[%emt 0:00:01]} Kd6 {[%emt 0:00:00]} 55. Ke4 {[%emt 0:00:00]} Kc6 {[%emt 0:00:00]} 56. Kd4 {[%emt 0:00:01]} Kb6 {[%emt 0:00:01]} 57. Ra8 {[%emt 0:00:00]} Rh3 {[%emt 0:00:01]} 58. Kc4 {[%emt 0:00:02]} a3 {[%emt 0:00:01]} 59. Kb4 {[%emt 0:00:01]} Rh4+ {[%emt 0:00:03]} 60. Kxa3 {[%emt 0:00:01]} Kb5 {[%emt 0:00:00]} 61. Rb8+ {[%emt 0:00:00]} Kc6 {[%emt 0:00:01]} 62. Rb4 {[%emt 0:00:01]} Rh3+ {[%emt 0:00:01]} 63. Rb3 {[%emt 0:00:01]} Rh1 {[%emt 0:00:00]} 64. Rc3+ {[%emt 0:00:00]} Kd5 {[%emt 0:00:01]} 65. Kb2 {[%emt 0:00:00]} Kd4 {[%emt 0:00:00]} 66. Rc2 {[%emt 0:00:01]} Kd3 {[%emt 0:00:01]} 67. Rc3+ {[%emt 0:00:00]} Kd4 {[%emt 0:00:00]} 68. Rc2 {[%emt 0:00:01]} Rh8 {[%emt 0:00:01]} 69. Rd2+ {[%emt 0:00:00]} Kc4 {[%emt 0:00:01]} 70. Rc2+ {[%emt 0:00:00]} Kb4 {[%emt 0:00:00]} 71. Rd2 {[%emt 0:00:01]} Rh4 {[%emt 0:00:01]} 72. Rc2 {[%emt 0:00:00]} Rg4 {[%emt 0:00:00]} 73. Rd2 {[%emt 0:00:01]} Rf4 {[%emt 0:00:01]} 74. Rc2 {[%emt 0:00:00]} Rf3 {[%emt 0:00:00]} 75. Rd2 {[%emt 0:00:01]} Kc4 {[%emt 0:00:01]} 76. Rc2+ {[%emt 0:00:00]} Kd4 {[%emt 0:00:00]} 77. Rd2+ {[%emt 0:00:01]} Kc5 {[%emt 0:00:01]} 78. Rc2+ {[%emt 0:00:00]} Kb4 {[%emt 0:00:00]} 79. Rd2 {[%emt 0:00:00]} Rb3+ {[%emt 0:00:01]} 80. Kc1 {[%emt 0:00:01]} Kc3 {[%emt 0:00:01]} 81. Rc2+ {[%emt 0:00:01]} Kd3 {[%emt 0:00:00]} 82. Rb2 {[%emt 0:00:00]} Rc3+ {[%emt 0:00:01]} 83. Kd1 {[%emt 0:00:00]} Ra3 {[%emt 0:00:01]} 84. Rd2+ {[%emt 0:00:01]} Ke3 {[%emt 0:00:00]} 85. Re2+ {[%emt 0:00:00]} Kf3 {[%emt 0:00:00]} 86. Re7 {[%emt 0:00:01]} Ra6 {[%emt 0:00:02]} 87. Kd2 {[%emt 0:00:01]} Rc6 {[%emt 0:00:01]} 88. Kd3 {[%emt 0:00:01]} Rd6+ {[%emt 0:00:01]} 89. Kc4 {[%emt 0:00:00]} Kf4 {[%emt 0:00:01]} 90. Kc5 {[%emt 0:00:00]} Rd1 {[%emt 0:00:00]} 91. Kc6 {[%emt 0:00:01]} Kf5 {[%emt 0:00:01]} 92. Rd7 {[%emt 0:00:00]} Rc1+ {[%emt 0:00:00]} 93. Kd6 {[%emt 0:00:00]} Kf6 {[%emt 0:00:01]} 94. Rb7 {[%emt 0:00:01]} Rd1+ {[%emt 0:00:01]} 95. Kc6 {[%emt 0:00:00]} Ke6 {[%emt 0:00:00]} 96. Rb5 {[%emt 0:00:00]} Rd8 {[%emt 0:00:02]} 97. Kc5 {[%emt 0:00:00]} Rc8+ {[%emt 0:00:01]} 98. Kb4 {[%emt 0:00:01]} Kd6 {[%emt 0:00:00]} 99. Rb6+ {[%emt 0:00:00]} Kd5 {[%emt 0:00:01]} 100. Rb5+ {[%emt 0:00:00]} Kd4 {[%emt 0:00:00]} 101. Rb7 {[%emt 0:00:00]} Rc1 {[%emt 0:00:01]} 102. Rd7+ {[%emt 0:00:02]} Ke5 {[%emt 0:00:00]} 103. Rd2 {[%emt 0:00:00]} Ke4 {[%emt 0:00:01]} 104. Kb3 {[%emt 0:00:01]} Ke3 {[%emt 0:00:01]} 105. Rc2 {[%emt 0:00:00]} Rb1+ {[%emt 0:00:01]} 106. Kc3 {[%emt 0:00:00]} Rb8 {[%emt 0:00:00]} 107. Rc1 {[%emt 0:00:01]} Ke2 {[%emt 0:00:03]} 108. Rc2+ {[%emt 0:00:01]} Kd1 {[%emt 0:00:00]} 109. Rh2 {[%emt 0:00:00]} Rc8+ {[%emt 0:00:01]} 110. Kd3 {[%emt 0:00:00]} 1/2-1/2

[Event "CCT Chessable Masters Play-In 2025"]
[Site "Online"]
[Date "2025.02.17"]
[Round "1.34"]
[White "Lobanov, Sergei"]
[Black "Xu, Xiangyu"]
[Result "1-0"]
[ECO "E49"]
[WhiteElo "2508"]
[BlackElo "2623"]
[PlyCount "119"]
[EventDate "2025.02.13"]
[EventType "swiss"]
[EventCountry "NET"]
[TimeControl "600"]
[WhiteClock "0:00:13"]

1. d4 {[%emt 0:00:01]} Nf6 {[%emt 0:00:04]} 2. c4 {[%emt 0:00:00]} e6 {[%emt 0:00:02]} 3. Nc3 {[%emt 0:00:01]} Bb4 {[%emt 0:00:02]} 4. e3 {[%emt 0:00:01]} O-O {[%emt 0:00:02]} 5. Bd3 {[%emt 0:00:01]} d5 {[%emt 0:00:02]} 6. a3 {[%emt 0:00:02]} Bxc3+ {[%emt 0:00:01]} 7. bxc3 {[%emt 0:00:00]} dxc4 {[%emt 0:00:01]} 8. Bxc4 {[%emt 0:00:00]} c5 {[%emt 0:00:01]} 9. Ne2 {[%emt 0:00:01]} Qc7 {[%emt 0:00:02]} 10. Ba2 {[%emt 0:00:04]} Nc6 {[%emt 0:00:54]} 11. O-O {[%emt 0:00:03]} Rd8 {[%emt 0:00:30]} 12. Bb2 {[%emt 0:00:24]} b6 {[%emt 0:00:05]} 13. c4 {[%emt 0:00:20]} cxd4 {[%emt 0:00:07]} 14. exd4 {[%emt 0:00:03]} Ba6 {[%emt 0:00:02]} 15. Rc1 {[%emt 0:01:05]} b5 {[%emt 0:00:48]} 16. d5 {[%emt 0:00:14]} bxc4 {[%emt 0:00:03]} 17. Bxf6 {[%emt 0:02:08]} gxf6 {[%emt 0:03:01]} 18. Bxc4 {[%emt 0:00:05]} Bxc4 {[%emt 0:00:02]} 19. Rxc4 {[%emt 0:00:00]} exd5 {[%emt 0:00:03]} 20. Rg4+ {[%emt 0:00:18]} Kh8 {[%emt 0:00:02]} 21. Qc2 {[%emt 0:00:02]} Qd7 {[%emt 0:01:54]} 22. Rh4 {[%emt 0:00:03]} f5 {[%emt 0:00:00]} 23. Ng3 {[%emt 0:00:34]} Ne7 {[%emt 0:00:12]} 24. Rd1 {[%emt 0:00:14]} Qd6 {[%emt 0:00:55]} 25. Nxf5 {[%emt 0:01:25]} Qf6 {[%emt 0:00:01]} 26. Rh5 {[%emt 0:00:13]} Rac8 {[%emt 0:00:06]} 27. Qb1 {[%emt 0:00:01]} Ng6 {[%emt 0:00:04]} 28. g3 {[%emt 0:00:10]} d4 {[%emt 0:00:06]} 29. Nh6 {[%emt 0:00:11]} Rc7 {[%emt 0:00:07]} 30. Rf5 {[%emt 0:00:07]} Qg7 {[%emt 0:00:01]} 31. Ng4 {[%emt 0:00:32]} Ne7 {[%emt 0:00:01]} 32. Rf4 {[%emt 0:00:04]} Rcd7 {[%emt 0:00:08]} 33. Nf6 {[%emt 0:00:34]} Nd5 {[%emt 0:00:01]} 34. Nxd5 {[%emt 0:00:07]} Rxd5 {[%emt 0:00:00]} 35. Qd3 {[%emt 0:00:01]} R5d7 {[%emt 0:00:01]} 36. Re1 {[%emt 0:00:02]} Qg6 {[%emt 0:00:01]} 37. Rfe4 {[%emt 0:00:02]} h5 {[%emt 0:00:03]} 38. h4 {[%emt 0:00:03]} Kg7 {[%emt 0:00:02]} 39. Kh2 {[%emt 0:00:09]} Re7 {[%emt 0:00:01]} 40. R1e2 {[%emt 0:00:03]} Rxe4 {[%emt 0:00:01]} 41. Rxe4 {[%emt 0:00:01]} Qf5 {[%emt 0:00:02]} 42. Kg1 {[%emt 0:00:04]} Kg6 {[%emt 0:00:02]} 43. Kg2 {[%emt 0:00:04]} Kg7 {[%emt 0:00:05]} 44. Qf3 {[%emt 0:00:01]} Qxf3+ {[%emt 0:00:01]} 45. Kxf3 {[%emt 0:00:00]} d3 {[%emt 0:00:00]} 46. Re1 {[%emt 0:00:00]} Kf6 {[%emt 0:00:01]} 47. Rd1 {[%emt 0:00:02]} Ke5 {[%emt 0:00:01]} 48. Ke3 {[%emt 0:00:00]} Rd4 {[%emt 0:00:01]} 49. Rxd3 {[%emt 0:00:01]} Ra4 {[%emt 0:00:00]} 50. Rb3 {[%emt 0:00:00]} a5 {[%emt 0:00:01]} 51. Rb5+ {[%emt 0:00:01]} Kf6 {[%emt 0:00:00]} 52. Rxh5 {[%emt 0:00:00]} Rxa3+ {[%emt 0:00:00]} 53. Kf4 {[%emt 0:00:00]} a4 {[%emt 0:00:01]} 54. Ra5 {[%emt 0:00:01]} Ra1 {[%emt 0:00:01]} 55. f3 {[%emt 0:00:01]} a3 {[%emt 0:00:00]} 56. g4 {[%emt 0:00:00]} Kg7 {[%emt 0:00:01]} 57. Kg5 {[%emt 0:00:01]} a2 {[%emt 0:00:00]} 58. f4 {[%emt 0:00:00]} f6+ {[%emt 0:00:01]} 59. Kf5 {[%emt 0:00:01]} Kh6 60. h5 {[%emt 0:00:01]} 1-0

[Event "CCT Chessable Masters Play-In 2025"]
[Site "Online"]
[Date "2025.02.17"]
[Round "1.35"]
[White "Deac, Bogdan-Daniel"]
[Black "Quintiliano, Renato R."]
[Result "1-0"]
[ECO "E09"]
[WhiteElo "2692"]
[BlackElo "2515"]
[PlyCount "117"]
[EventDate "2025.02.13"]
[EventType "swiss"]
[EventCountry "NET"]
[TimeControl "600"]
[WhiteClock "0:00:07"]

1. Nf3 {[%emt 0:00:01]} Nf6 {[%emt 0:00:02]} 2. c4 {[%emt 0:00:02]} e6 {[%emt 0:00:02]} 3. g3 {[%emt 0:00:06]} d5 {[%emt 0:00:03]} 4. Bg2 {[%emt 0:00:00]} Be7 {[%emt 0:00:01]} 5. d4 {[%emt 0:00:01]} O-O {[%emt 0:00:02]} 6. O-O {[%emt 0:00:01]} Nbd7 {[%emt 0:00:26]} 7. Qc2 {[%emt 0:00:01]} c6 {[%emt 0:00:11]} 8. Nbd2 {[%emt 0:00:07]} b6 {[%emt 0:00:16]} 9. e4 {[%emt 0:00:02]} dxc4 {[%emt 0:00:01]} 10. Nxc4 {[%emt 0:00:01]} Bb7 {[%emt 0:00:01]} 11. Bf4 {[%emt 0:00:03]} c5 {[%emt 0:00:17]} 12. Rfe1 {[%emt 0:00:02]} cxd4 {[%emt 0:00:14]} 13. Nd6 {[%emt 0:00:02]} Bxd6 {[%emt 0:00:03]} 14. Bxd6 {[%emt 0:00:01]} d3 {[%emt 0:00:01]} 15. Qxd3 {[%emt 0:00:03]} Re8 {[%emt 0:01:57]} 16. e5 {[%emt 0:02:41]} Nd5 {[%emt 0:00:06]} 17. Rac1 {[%emt 0:00:03]} h6 {[%emt 0:00:17]} 18. Nd4 {[%emt 0:00:11]} Rc8 {[%emt 0:00:14]} 19. Nb5 {[%emt 0:00:44]} Rxc1 {[%emt 0:01:37]} 20. Rxc1 {[%emt 0:00:02]} Qg5 {[%emt 0:00:09]} 21. Qf1 {[%emt 0:01:44]} Ba6 {[%emt 0:00:58]} 22. a4 {[%emt 0:00:32]} Qd2 {[%emt 0:00:06]} 23. b3 {[%emt 0:01:23]} Bxb5 {[%emt 0:01:29]} 24. axb5 {[%emt 0:00:02]} Qb2 {[%emt 0:00:06]} 25. Rb1 {[%emt 0:00:08]} Qc3 {[%emt 0:00:01]} 26. Qe1 {[%emt 0:00:06]} Rc8 {[%emt 0:00:02]} 27. Bxd5 {[%emt 0:00:19]} exd5 {[%emt 0:00:07]} 28. Qe2 {[%emt 0:00:05]} Nc5 {[%emt 0:00:04]} 29. Bxc5 {[%emt 0:00:16]} Qxc5 {[%emt 0:00:10]} 30. e6 {[%emt 0:00:04]} Re8 {[%emt 0:00:01]} 31. exf7+ {[%emt 0:00:02]} Kxf7 {[%emt 0:00:00]} 32. Qh5+ {[%emt 0:00:01]} Kf8 {[%emt 0:00:00]} 33. Qf3+ {[%emt 0:00:13]} Kg8 {[%emt 0:00:02]} 34. Qd3 {[%emt 0:00:01]} Rf8 {[%emt 0:00:03]} 35. Qe2 {[%emt 0:00:01]} d4 {[%emt 0:00:02]} 36. Rd1 {[%emt 0:00:04]} Rd8 {[%emt 0:00:03]} 37. Qd3 {[%emt 0:00:03]} Kh8 {[%emt 0:00:01]} 38. h4 {[%emt 0:00:01]} Rd5 {[%emt 0:00:02]} 39. Re1 {[%emt 0:00:13]} Re5 {[%emt 0:00:02]} 40. Ra1 {[%emt 0:00:05]} Qc3 {[%emt 0:00:06]} 41. Qd1 {[%emt 0:00:04]} d3 {[%emt 0:00:05]} 42. Rc1 {[%emt 0:00:01]} Qd4 {[%emt 0:00:04]} 43. Rc4 {[%emt 0:00:00]} d2 {[%emt 0:00:08]} 44. Rxd4 {[%emt 0:00:03]} Re1+ {[%emt 0:00:02]} 45. Kg2 {[%emt 0:00:00]} Rxd1 {[%emt 0:00:00]} 46. b4 {[%emt 0:00:03]} Kh7 {[%emt 0:00:03]} 47. Kf3 {[%emt 0:00:01]} Rb1 {[%emt 0:00:01]} 48. Rxd2 {[%emt 0:00:00]} Rxb4 {[%emt 0:00:01]} 49. Rd5 {[%emt 0:00:01]} Rb2 {[%emt 0:00:02]} 50. h5 {[%emt 0:00:00]} Kg8 {[%emt 0:00:02]} 51. g4 {[%emt 0:00:01]} Kf7 {[%emt 0:00:00]} 52. Rd7+ {[%emt 0:00:00]} Kf6 {[%emt 0:00:01]} 53. Rxa7 {[%emt 0:00:01]} Rxb5 {[%emt 0:00:01]} 54. Kg3 {[%emt 0:00:00]} Rb3+ {[%emt 0:00:01]} 55. f3 {[%emt 0:00:00]} b5 {[%emt 0:00:00]} 56. Ra6+ {[%emt 0:00:01]} Kf7 {[%emt 0:00:02]} 57. Ra7+ {[%emt 0:00:00]} Kf6 {[%emt 0:00:01]} 58. Ra8 {[%emt 0:00:00]} Kf7 59. Ra6 {[%emt 0:00:00]} 1-0